Cogmind - Beta 14 @@@ ROGUE MODE // 2024.11.10 @ 12:49:14 Player: MarKhan Result: Destroyed by P-80 Master with Gamma Rifle Performance ------------- Evolutions (7) 3500 Regions Visited (12) 2400 Robots Destroyed (12) 60 Value Destroyed (247) 247 Prototype IDs (6) 120 Alien Tech Used (0) 0 Bonus (1242) 1242 TOTAL SCORE: 7569 Bonus ------- Follower Combat Kills 51 Entered DSFs 1000 Registered with UFD 300 Friendly Fire -109 Cogmind --------- Core Integrity 0/1300 Matter 78/300 Energy 99/100 System Corruption 0% Temperature Cool (0) Movement Core (50) Location -3/Armory Parts ------- > --- POWER (1) -------- (None) > --- PROPULSION (2) --- (None) > --- UTILITY (16) ----- Advanced Visual Processing Unit Advanced Visual Processing Unit Enhanced Optical Array Enhanced Optical Array Improved Signal Interpreter Advanced Signal Interpreter Terrain Scan Processor Improved Terrain Scan Processor Core Analyzer Advanced Corruption Screen > --- WEAPON (2) ------- (None) > --- INVENTORY (5) ---- Advanced Weight Redist. System Advanced Plasma Cannon Improved Remote Datajack Katana Peak State ------------ > --- POWER ------------ (None) > --- PROPULSION ------- (None) > --- UTILITY ---------- Advanced Visual Processing Unit Advanced Visual Processing Unit Advanced Visual Processing Unit Enhanced Optical Array Enhanced Optical Array Improved Signal Interpreter Advanced Signal Interpreter Advanced Signal Interpreter Terrain Scan Processor Improved Terrain Scan Processor Seismic Detector Improved Melee Analysis Suite Core Analyzer Hacking Suite Advanced Hacking Suite Advanced Corruption Screen > --- WEAPON ----------- Improved Remote Datajack Katana > --- INVENTORY -------- Improved Deuterium Engine Advanced Weight Redist. System Subdweller Shrapnel Launcher [Rating: 72] Favorites ----------- Power Light Ion Engine Engine Light Ion Engine Power Core Fusion Compressor Propulsion None Utility Improved Terrain Scan Processor Device Improved Terrain Scanner Storage Small Storage Unit Processor Improved Terrain Scan Processor Hackware Advanced Hacking Suite Weapon Katana Ballistic Gun Light Assault Rifle Launcher Subdweller Shrapnel Launcher Special Weapon Improved Remote Datajack Impact Weapon Hammer Slashing Weapon Katana Build | -11 -10 -10 -10 -8 -8 -6 -6 -5 -4 -4 -3 -3 ------- Run | Yrd Mat Min Sub Rec Scr Fac DSF Fac Fac DSF Res Arm Slots Evolved 14 | . . . . . . 8 . 2 2 . 2 . Power . | . . . . . . . . . . . . . Propulsion . | . . . . . . . . . . . . . Utility 14 | . . . . . . 8 . 2 2 . 2 . Weapon . | . . . . . . . . . . . . . Parts Attached 60 | 3 3 3 6 6 2 12 3 5 . . 15 2 Power 4 | . . . 1 . . 2 . . . . 1 . Engine 3 | . . . 1 . . 1 . . . . 1 . Core 1 | . . . . . . 1 . . . . . . Reactor . | . . . . . . . . . . . . . Propulsion . | . . . . . . . . . . . . . Treads . | . . . . . . . . . . . . . Leg . | . . . . . . . . . . . . . Wheel . | . . . . . . . . . . . . . Hover . | . . . . . . . . . . . . . Flight . | . . . . . . . . . . . . . Utility 39 | 2 1 1 3 4 1 9 3 5 . . 10 . Device 20 | 2 1 1 2 2 1 7 . 2 . . 2 . Storage 2 | . . . 1 1 . . . . . . . . Processor 15 | . . . . 1 . 2 3 3 . . 6 . Hackware 2 | . . . . . . . . . . . 2 . Protection . | . . . . . . . . . . . . . Artifact . | . . . . . . . . . . . . . Weapon 17 | 1 2 2 2 2 1 1 . . . . 4 2 Energy Gun . | . . . . . . . . . . . . . Energy Cannon . | . . . . . . . . . . . . . Ballistic Gun 2 | 1 1 . . . . . . . . . . . Ballistic Cannon . | . . . . . . . . . . . . . Launcher 2 | . . . . . 1 . . . . . . 1 Special Weapon 4 | . 1 1 . . . . . . . . 2 . Impact Weapon 4 | . . 1 2 1 . . . . . . . . Slashing Weapon 5 | . . . . 1 . 1 . . . . 2 1 Piercing Weapon . | . . . . . . . . . . . . . Special Melee Weapon . | . . . . . . . . . . . . . Unidentified Prototypes . | . . . . . . . . . . . . . Parts Lost 16 | . . . 3 . . . 1 3 . 2 . 7 Power 2 | . . . 1 . . . . . . . . 1 Propulsion . | . . . . . . . . . . . . . Utility 12 | . . . 1 . . . 1 3 . 2 . 5 Weapon 2 | . . . 1 . . . . . . . . 1 Highest Loss Streak 7 | . . . 2 . . . 1 3 . 2 . 7 To Critical Strikes . | . . . . . . . . . . . . . Average Slot Usage (%) 44 | . 43 42 40 40 42 43 55 52 47 38 66 66 Device 12 | . 28 28 20 1 2 18 22 11 5 1 4 3 Storage 6 | . . . 6 12 11 . . . . . . . Processor 13 | . . . . 13 14 20 33 41 42 37 50 53 Ballistic Gun 4 | . 12 14 5 . . . . . . . . . Impact Weapon 1 | . . . . 4 . . . . . . . . Slashing Weapon 5 | . . . . 8 14 4 . . . . 2 2 Peak Build Rating 72 | 7 7 8 7 9 12 25 37 36 30 30 72 68 Average Rating 12 | 3 5 5 4 7 8 20 28 33 30 26 54 56 On Entrance 18 | . 7 5 8 2 8 10 22 29 30 30 26 68 Naked Turns . | . . . . . . . . . . . . . Heaviest Build 13 | 3 3 5 9 7 11 13 3 2 1 1 7 8 Greatest Support 12 | 3 3 3 3 3 3 12 3 3 3 3 12 12 Greatest Overweight (x) 4 | . . 1 2 2 3 4 . . . . 2 2 Average Overweight (x) . | . . . . 1 1 . . . . . . . Largest Inventory Capacity 8 | 5 5 5 8 8 8 5 5 5 5 5 5 5 Average Capacity 6 | 5 5 5 6 7 7 5 5 5 5 5 5 5 Most Carried 8 | 5 5 5 8 8 8 5 5 5 5 5 5 5 Average Carried 6 | 2 4 4 6 7 7 4 4 4 5 5 3 4 Final Capacity 8 | 5 5 5 8 8 5 5 5 5 5 5 5 5 Final Carried 8 | 5 5 4 8 8 5 5 5 5 5 5 3 4 Class Distribution -------------------- 84% | Mutant 6% | Hacker-Mutant 4% | Scout 3% | Assassin Dominant Class ---------------- Mutant | -10/Materials Mutant | -10/Mines Mutant | -10/Subcaves Mutant | -8/Recycling Mutant | -8/Scraptown Assassin | -6/Factory Scout | -6/DSF Scout | -5/Factory Mutant | -4/Factory Mutant | -4/DSF Hacker-Mutant | -3/Research Mutant | -3/Armory Resources | -11 -10 -10 -10 -8 -8 -6 -6 -5 -4 -4 -3 -3 ----------- Run | Yrd Mat Min Sub Rec Scr Fac DSF Fac Fac DSF Res Arm Matter Collected 586 | 265 . 48 75 56 4 70 3 31 . . 34 . Remotely . | . . . . . . . . . . . . . Salvage Created 476 | 181 . 43 49 . . 83 . . . . 80 40 Parts 31 | 17 . 1 4 . . 2 . . . . 3 4 Haulers Intercepted 1 | . . . . . . 1 . . . . . . Recyclers Shooed 3 | 2 . . . . . . . . . . 1 . Parts Field Recycled . | . . . . . . . . . . . . . Retrieved Matter . | . . . . . . . . . . . . . Parts Self-Destructed 3 | . . . 3 . . . . . . . . . Prevented . | . . . . . . . . . . . . . Kills | -11 -10 -10 -10 -8 -8 -6 -6 -5 -4 -4 -3 -3 ------- Run | Yrd Mat Min Sub Rec Scr Fac DSF Fac Fac DSF Res Arm Combat Hostiles Destroyed 2 | . . . 1 . . . . . . . . 1 Melee 1 | . . . 1 . . . . . . . . . AOE 1 | . . . . . . . . . . . . 1 Classes Destroyed 7 | 2 . 1 1 . . 1 . . . . 1 1 Tunneler 5 | 5 . . . . . . . . . . . . Hauler 1 | . . . . . . 1 . . . . . . Recycler 1 | 1 . . . . . . . . . . . . Watcher 2 | . . . . . . . . . . . 2 . Swarmer 1 | . . . . . . . . . . . . 1 Grunt 1 | . . 1 . . . . . . . . . . Subdweller 1 | . . . 1 . . . . . . . . . Best Kill Streak 3 | 3 . . 1 . . 1 . . . . 1 1 Combat Bots Only 1 | . . . 1 . . . . . . . . 1 Max Kills in Single Turn 1 | 1 . 1 1 . . 1 . . . . 1 1 Gunslinging . | . . . . . . . . . . . . . Exploded 1 | . . . . . . . . . . . . 1 Melee 1 | . . . 1 . . . . . . . . . Uniques/NPCs Destroyed . | . . . . . . . . . . . . . Combat | -11 -10 -10 -10 -8 -8 -6 -6 -5 -4 -4 -3 -3 -------- Run | Yrd Mat Min Sub Rec Scr Fac DSF Fac Fac DSF Res Arm Hostile Shots Fired 290 | . 14 6 78 . . . 25 28 . 32 4 103 Missed 109 | . 4 4 33 . . . 10 11 . 8 2 37 Damage Taken 3207 | . 85 15 371 . . . 203 473 . 471 50 1539 Core 2527 | . 26 9 194 . . . 149 419 . 427 27 1276 Absorbed by Shields 79 | . . . . . . . . . . 79 . . Regen/Repaired (Parts) 39 | . . . . . . 18 . . . . 21 . Core Remaining (%) 62 | 100 . . . . 8 . 82 58 . 62 . . Volleys Fired 52 | 35 . 9 . . . . . . . . 7 1 Largest 1 | 1 . 1 . . . . . . . . 1 1 Hottest 100 | 20 . 100 . . . . . . . . 7 40 Shots Fired 52 | 35 . 9 . . . . . . . . 7 1 Gun 43 | 35 . 8 . . . . . . . . . . Cannon . | . . . . . . . . . . . . . Launcher 1 | . . . . . . . . . . . . 1 Special 8 | . . 1 . . . . . . . . 7 . Kinetic 44 | 35 . 8 . . . . . . . . . 1 Thermal 1 | . . 1 . . . . . . . . . . Explosive . | . . . . . . . . . . . . . Electromagnetic . | . . . . . . . . . . . . . Robot Hit Streak 4 | 4 . 2 . . . . . . . . 4 2 Robot Miss Streak 4 | 3 . 4 . . . . . . . . 3 . Penetration Max . | . . . . . . . . . . . . . Secondary Targets . | . . . . . . . . . . . . . Shots Hit Robots 46 | 23 . 2 1 . . 1 . . . . 18 1 Core Hits 21 | 10 . 2 1 . . 1 . . . . 5 2 Critical Kills . | . . . . . . . . . . . . . Critical Parts Destroyed . | . . . . . . . . . . . . . Critical Strikes 2 | . . . . . . . . . . . 2 . Sever 2 | . . . . . . . . . . . 2 . Melee Attacks 52 | . . 1 5 5 . 1 . . . . 38 2 Impact 8 | . . 1 5 2 . . . . . . . . Slashing 44 | . . . . 3 . 1 . . . . 38 2 Piercing . | . . . . . . . . . . . . . Sneak Attacks 5 | . . . . . . 1 . . . . 4 . Combat Hostiles . | . . . . . . . . . . . . . Follow-up Attacks . | . . . . . . . . . . . . . Damage Inflicted 1148 | 170 . 24 15 . . 57 . 14 . . 605 263 Guns 194 | 170 . 24 . . . . . . . . . . Cannons . | . . . . . . . . . . . . . Explosions 235 | . . . . . . . . . . . . 235 Melee 677 | . . . 15 . . 57 . . . . 605 . Ramming 42 | . . . . . . . . 14 . . . 28 Kinetic 429 | 170 . 24 . . . . . . . . . 235 Thermal . | . . . . . . . . . . . . . Explosive . | . . . . . . . . . . . . . Electromagnetic . | . . . . . . . . . . . . . Impact 15 | . . . 15 . . . . . . . . . Slashing 662 | . . . . . . 57 . . . . 605 . Piercing . | . . . . . . . . . . . . . Highest Corruption . | . . . . . . . . . . . . . Average Corruption . | . . . . . . . . . . . . . Corruption Purged . | . . . . . . . . . . . . . Corruption Blocked 7 | . . . . . . . . . . . . 7 Overload Shots . | . . . . . . . . . . . . . Overflow Damage 91 | . . . . . . . . . . . 91 . Projectiles . | . . . . . . . . . . . . . Explosions . | . . . . . . . . . . . . . Melee 91 | . . . . . . . . . . . 91 . Knockbacks . | . . . . . . . . . . . . . Impact . | . . . . . . . . . . . . . Kinetic . | . . . . . . . . . . . . . Secondary . | . . . . . . . . . . . . . Self-Inflicted Damage 76 | . . . . . . . . 7 . . . 69 Shots 1 | . . . . . . . . . . . . 1 Rammed 8 | . . . . . . . . 2 . . . 6 Targets Rammed 8 | . . . . . . . . 2 . . . 6 Kicked . | . . . . . . . . . . . . . Crushed . | . . . . . . . . . . . . . Highest Temperature . | . . . . . . . . . . . . . Average Temperature . | . . . . . . . . . . . . . Received Heat Transfer 497 | . 6 . 246 . . . 24 66 . 68 9 78 Siege Activations . | . . . . . . . . . . . . . Robots Corrupted . | . . . . . . . . . . . . . Combat Hostiles . | . . . . . . . . . . . . . Parts Fried . | . . . . . . . . . . . . . Impact Corruptions . | . . . . . . . . . . . . . Robots Melted . | . . . . . . . . . . . . . Combat Hostiles . | . . . . . . . . . . . . . Parts Melted . | . . . . . . . . . . . . . Heat Transferred . | . . . . . . . . . . . . . Parts Sabotaged . | . . . . . . . . . . . . . Parts Stolen . | . . . . . . . . . . . . . Parts Stripped . | . . . . . . . . . . . . . Power Chain Reactions . | . . . . . . . . . . . . . Alert | -11 -10 -10 -10 -8 -8 -6 -6 -5 -4 -4 -3 -3 ------- Run | Yrd Mat Min Sub Rec Scr Fac DSF Fac Fac DSF Res Arm Peak Influence 189 | 30 165 144 . 69 . 10 7 20 7 15 189 186 Initial 64 | . 19 64 . 4 . . 7 . 7 4 8 4 Average 27 | 12 85 28 . 21 . 6 2 5 7 1 56 34 Maximum Alert Level . | . . . . . . . . . . . . . Low Security (%) 100 | 100 100 100 . 100 . 100 100 100 100 100 100 100 Level 1 . | . . . . . . . . . . . . . Level 2 . | . . . . . . . . . . . . . Level 3 . | . . . . . . . . . . . . . Level 4 . | . . . . . . . . . . . . . Level 5 . | . . . . . . . . . . . . . High Security . | . . . . . . . . . . . . . Max Security . | . . . . . . . . . . . . . Squads Dispatched 4 | . 1 . . . . . 1 . . 1 . 1 Investigation . | . . . . . . . . . . . . . Extermination . | . . . . . . . . . . . . . Reinforcement 4 | . 1 . . . . . 1 . . 1 . 1 Assault . | . . . . . . . . . . . . . Garrison . | . . . . . . . . . . . . . Intercept . | . . . . . . . . . . . . . Searches Triggered . | . . . . . . . . . . . . . Construction Impeded . | . . . . . . . . . . . . . Haulers Reinforced . | . . . . . . . . . . . . . Active Scanning Responses . | . . . . . . . . . . . . . Cargo Convoy Interrupts . | . . . . . . . . . . . . . Stealth | -11 -10 -10 -10 -8 -8 -6 -6 -5 -4 -4 -3 -3 --------- Run | Yrd Mat Min Sub Rec Scr Fac DSF Fac Fac DSF Res Arm Distress Signals 1 | . . . . . . . . . . . . 1 Communications Jammed . | . . . . . . . . . . . . . Distress Signals . | . . . . . . . . . . . . . Times Spotted 61 | . 12 5 9 . . . 5 3 . 4 9 14 Peak Tracking Total 13 | . 8 3 4 . . . 5 3 . 3 2 13 Tactical Retreats 8 | . 3 . 1 . . . . . . 1 1 2 Traps | -11 -10 -10 -10 -8 -8 -6 -6 -5 -4 -4 -3 -3 ------- Run | Yrd Mat Min Sub Rec Scr Fac DSF Fac Fac DSF Res Arm Traps Triggered 5 | . . . . . . . 1 . . 3 1 . Indirectly . | . . . . . . . . . . . . . Trap Hack Attempts . | . . . . . . . . . . . . . Triggered . | . . . . . . . . . . . . . Disarmed . | . . . . . . . . . . . . . Reprogrammed . | . . . . . . . . . . . . . Reused . | . . . . . . . . . . . . . Traps Extracted . | . . . . . . . . . . . . . Installed . | . . . . . . . . . . . . . Triggered . | . . . . . . . . . . . . . Machines | -11 -10 -10 -10 -8 -8 -6 -6 -5 -4 -4 -3 -3 ---------- Run | Yrd Mat Min Sub Rec Scr Fac DSF Fac Fac DSF Res Arm Machines Disabled 2 | . . . . 1 . . . . . . 1 . Max in Single Turn 1 | . . . . 1 . . . . . . 1 . Garrison Access 1 | . . . . . . 1 . . . . . . Machines Repaired . | . . . . . . . . . . . . . Machines Dismantled . | . . . . . . . . . . . . . Machines Sabotaged . | . . . . . . . . . . . . . Overloaded Fab Kills . | . . . . . . . . . . . . . Hacking | -11 -10 -10 -10 -8 -8 -6 -6 -5 -4 -4 -3 -3 --------- Run | Yrd Mat Min Sub Rec Scr Fac DSF Fac Fac DSF Res Arm Machines Accessed 34 | . 3 . . 12 3 4 . 2 1 . 6 3 Terminals 18 | . 3 . . 6 . 1 . 2 1 . 3 2 Fabricators 2 | . . . . . . . . . . . 1 1 Repair Stations 3 | . . . . . . 1 . . . . 2 . Recycling Units 7 | . . . . 6 . 1 . . . . . . Scanalyzers . | . . . . . . . . . . . . . Garrison Access 1 | . . . . . . 1 . . . . . . Total Hacks 107 | . 12 . . 43 11 10 . 7 2 . 13 9 Successful 59 | . 6 . . 23 11 4 . 3 1 . 8 3 Failed 48 | . 6 . . 20 . 6 . 4 1 . 5 6 Catastrophic 2 | . . . . 1 . 1 . . . . . . Database Lockouts . | . . . . . . . . . . . . . Manual 37 | . 8 . . 19 . 2 . 1 . . 5 2 Terminals 64 | . 12 . . 27 . 2 . 7 2 . 7 7 Fabricators 5 | . . . . . . . . . . . 3 2 Repair Stations 5 | . . . . . . 2 . . . . 3 . Recycling Units 18 | . . . . 16 . 2 . . . . . . Scanalyzers . | . . . . . . . . . . . . . Garrison Access 4 | . . . . . . 4 . . . . . . Terminal Hacks 27 | . 3 . . 7 11 1 . 2 1 . 1 1 Record 12 | . . . . 1 10 . . . . . 1 . Part Schematic 1 | . . . . 1 . . . . . . . . Robot Analysis 1 | . . . . 1 . . . . . . . . Open DSF 3 | . . . . . . 1 . 1 1 . . . Branch Access Points 2 | . 1 . . 1 . . . . . . . . Locate Traps 1 | . 1 . . . . . . . . . . . Zone Layout 6 | . 1 . . 3 . . . 1 . . . 1 Derelict Proto ID Bank 1 | . . . . . 1 . . . . . . . Fabricator Hacks 2 | . . . . . . . . . . . 1 1 Network Status 2 | . . . . . . . . . . . 1 1 Repair Station Hacks 4 | . . . . . . 2 . . . . 2 . Scan Component 2 | . . . . . . 1 . . . . 1 . Repair 2 | . . . . . . 1 . . . . 1 . Recycling Unit Hacks 8 | . . . . 8 . . . . . . . . Report Inventory 6 | . . . . 6 . . . . . . . . Retrieve Components 2 | . . . . 2 . . . . . . . . Scanalyzer . | . . . . . . . . . . . . . Garrison Access Hacks 1 | . . . . . . 1 . . . . . . Seal Access 1 | . . . . . . 1 . . . . . . Unauthorized Hacks 17 | . 3 . . 8 . . . 1 . . 4 1 Terminals 14 | . 3 . . 5 . . . 1 . . 4 1 Assimilate 2 | . . . . . . . . . . . 2 . Botnet 9 | . 2 . . 3 . . . 1 . . 2 1 Skim 3 | . 1 . . 2 . . . . . . . . Fabricators . | . . . . . . . . . . . . . Repair Stations . | . . . . . . . . . . . . . Recycling Units 3 | . . . . 3 . . . . . . . . Tunnel 3 | . . . . 3 . . . . . . . . Scanalyzers . | . . . . . . . . . . . . . Garrison Access . | . . . . . . . . . . . . . Data Cores Recovered . | . . . . . . . . . . . . . Used . | . . . . . . . . . . . . . Hacking Detections 28 | . 3 . . 10 . 3 . 2 1 . 6 3 Full Trace Events 5 | . . . . 5 . . . . . . . . Feedback Events . | . . . . . . . . . . . . . Feedback Blocked . | . . . . . . . . . . . . . Robot Schematics Acquired . | . . . . . . . . . . . . . Robots Built . | . . . . . . . . . . . . . Authchips . | . . . . . . . . . . . . . Time . | . . . . . . . . . . . . . Total Robot Build Rating . | . . . . . . . . . . . . . Part Schematics Acquired 1 | . . . . 1 . . . . . . . . Parts Built . | . . . . . . . . . . . . . Authchips . | . . . . . . . . . . . . . Time . | . . . . . . . . . . . . . Total Part Build Rating . | . . . . . . . . . . . . . Parts Repaired 2 | . . . . . . 1 . . . . 1 . Time 76 | . . . . . . 38 . . . . 38 . Parts Recycled . | . . . . . . . . . . . . . Recycled Matter . | . . . . . . . . . . . . . Retrieved Matter . | . . . . . . . . . . . . . Retrieved Components 3 | . . . . 3 . . . . . . . . Parts Scanalyzed . | . . . . . . . . . . . . . Part Schematics Acquired . | . . . . . . . . . . . . . Parts Damaged . | . . . . . . . . . . . . . Bothacking | -11 -10 -10 -10 -8 -8 -6 -6 -5 -4 -4 -3 -3 ------------ Run | Yrd Mat Min Sub Rec Scr Fac DSF Fac Fac DSF Res Arm Used RIF Installer . | . . . . . . . . . . . . . Robots Hacked 4 | . . . . . . . . . . . 4 . Non-combat 4 | . . . . . . . . . . . 4 . Combat . | . . . . . . . . . . . . . Robot Hacks Applied 4 | . . . . . . . . . . . 4 . parse_system 2 | . . . . . . . . . . . 2 . no_distress 1 | . . . . . . . . . . . 1 . find_recycling 1 | . . . . . . . . . . . 1 . Relay Couplers Released . | . . . . . . . . . . . . . Fabnet Peak Effective % . | . . . . . . . . . . . . . Robots Rewired . | . . . . . . . . . . . . . Allies Hacked . | . . . . . . . . . . . . . Hacks Repelled . | . . . . . . . . . . . . . Allies | -11 -10 -10 -10 -8 -8 -6 -6 -5 -4 -4 -3 -3 -------- Run | Yrd Mat Min Sub Rec Scr Fac DSF Fac Fac DSF Res Arm Total Allies 4 | . . 3 . . . . . . . . 1 . Largest Group 3 | . . 3 2 . . . . . . . 1 1 Highest-Rated Group 40 | . . 40 32 . . . . . . . 26 26 Highest-Rated Ally 26 | . . 16 16 . . . . . . . 26 26 Total Orders . | . . . . . . . . . . . . . Ally Attacks 24 | . . 11 13 . . . . . . . . . Total Damage 298 | . . 110 188 . . . . . . . . . Kills 4 | . . 3 1 . . . . . . . . . Allies Corrupted . | . . . . . . . . . . . . . Allies Melted . | . . . . . . . . . . . . . Intel | -11 -10 -10 -10 -8 -8 -6 -6 -5 -4 -4 -3 -3 ------- Run | Yrd Mat Min Sub Rec Scr Fac DSF Fac Fac DSF Res Arm Robot Analysis Total 1 | . . . . 1 . . . . . . . . Derelict Logs Recovered 3 | . . 1 1 . 1 . . . . . . . Drone Launches . | . . . . . . . . . . . . . Drone Recoveries . | . . . . . . . . . . . . . Exploration | -11 -10 -10 -10 -8 -8 -6 -6 -5 -4 -4 -3 -3 ------------- Run | Yrd Mat Min Sub Rec Scr Fac DSF Fac Fac DSF Res Arm Turns Passed 6567 | 125 119 1622 548 1318 1573 365 68 121 12 56 556 84 Spaces Moved 5700 | 101 215 862 645 979 1355 310 91 224 24 64 702 128 Core 5700 | 101 215 862 645 979 1355 310 91 224 24 64 702 128 Treads . | . . . . . . . . . . . . . Legs . | . . . . . . . . . . . . . Wheels . | . . . . . . . . . . . . . Hover . | . . . . . . . . . . . . . Flight . | . . . . . . . . . . . . . Fastest Speed 50 | 50 50 50 50 50 50 50 50 50 50 50 50 50 Average Speed 84 | 50 50 50 77 131 115 71 50 50 50 50 51 50 Slowest Speed 250 | 50 50 100 150 150 200 250 50 50 50 50 150 150 Overloaded Moves . | . . . . . . . . . . . . . Propulsion Burnouts . | . . . . . . . . . . . . . Robots Hopped . | . . . . . . . . . . . . . Cave-ins Triggered . | . . . . . . . . . . . . . Exploration Rate (%) 46 | 4 51 105 44 92 86 8 81 11 1 88 18 14 Regions Visited 12 Branch Regions 5 Pre-discovered Areas 3 | . . . . 3 . . . . . . . . Known Exits Taken 5 | . 1 . . . . 1 . 1 1 . 1 . Unknown Exits Taken 5 | 1 . 1 1 1 1 . . . . . . . Scrap Searched 6 | . . 1 . . 5 . . . . . . . Spaces Dug 20 | . . 1 1 3 . . . . . . 15 . Terrain Destroyed 38 | . . 1 1 3 . . . . . . 15 18 Melee 19 | . . . 1 3 . . . . . . 15 . Projectile 1 | . . 1 . . . . . . . . . . AOE 18 | . . . . . . . . . . . . 18 Terrain Rammed . | . . . . . . . . . . . . . Walls Destroyed . | . . . . . . . . . . . . . Machines Disabled . | . . . . . . . . . . . . . Actions | -11 -10 -10 -10 -8 -8 -6 -6 -5 -4 -4 -3 -3 --------- Run | Yrd Mat Min Sub Rec Scr Fac DSF Fac Fac DSF Res Arm Total 7334 | 147 226 2038 686 1001 1359 451 112 231 23 87 830 143 Wait 1363 | . 4 1162 22 4 . 120 . . . . 49 2 Move 5689 | 100 214 861 644 978 1354 309 90 224 23 63 701 128 Hop . | . . . . . . . . . . . . . Pick Up 26 | 7 2 1 4 5 1 2 2 . . . 2 . Fast Attach 27 | 3 . . 1 2 . 4 3 4 . . 10 . Attach 21 | . 1 2 2 2 1 7 . 1 . . 4 1 Detach 16 | . 1 . 3 . 1 6 . 1 . . 2 2 Swap 12 | . 2 1 3 2 1 1 . . . . 1 1 Drop 15 | 2 2 1 2 3 1 1 2 . . . 1 . Fire 52 | 35 . 9 . . . . . . . . 7 1 Melee 52 | . . 1 5 5 . 1 . . . . 38 2 Ram 7 | . . . . . . . . 1 . . . 6 Kick . | . . . . . . . . . . . . . Crush . | . . . . . . . . . . . . . Escape Stasis 54 | . . . . . . . 15 . . 24 15 . Rewire . | . . . . . . . . . . . . . Trap . | . . . . . . . . . . . . . Miscellaneous . | . . . . . . . . . . . . . Route ------- -11/Scrapyard -10/Materials (discovered 2 exits: [*Mat] / *Min) -10/Mines (discovered 3 exits: [*Mat x2] / [*Sub]) -10/Subcaves -8/Recycling (discovered 2 exits: *Fac / *Scr) -8/Scraptown (discovered 2 exits: *Fac x2) -6/Factory -6/DSF -5/Factory -4/Factory -4/DSF -3/Research -3/Armory History --------- Turn | Location | Event 2 | -11/Scrapyard | Discovered new exit (range 16) 126 | -11/Scrapyard | Entered Materials 175 | -10/Materials | Identified exit to Mines 191 | -10/Materials | Discovered new exit (range 15) 245 | -10/Materials | Entered Mines 258 | -10/Mines | Joined a pair of Derelicts in attacking an 0b10 outpost 275 | -10/Mines | Met a Derelict bent on vengeance 314 | -10/Mines | Build established: Mutant 340 | -10/Mines | Assisted by bots powering up and referring to "LRC-V3" 797 | -10/Mines | Learned 4 Materials zone layouts 807 | -10/Mines | Discovered new exit (range 8) 840 | -10/Mines | Discovered new exit (range 11) 1830 | -10/Mines | Discovered new exit (range 3) 1867 | -10/Mines | Entered Subcaves 1867 | -10/Subcaves | Accompanied by 2 allies 1875 | -10/Subcaves | Learned Materials garrison access intel 1889 | -10/Subcaves | Ambushed by Subdwellers from Twisted Machinery 2398 | -10/Subcaves | Discovered new exit (range 16) 2402 | -10/Subcaves | Core integrity fell below 50% 2414 | -10/Subcaves | Core integrity fell below 20% 2415 | -10/Subcaves | Entered Recycling 3008 | -8/Recycling | Discovered new exit (range 15) 3692 | -8/Recycling | Scanned before Scraplab entrance 3715 | -8/Recycling | Entered Scraplab 3730 | -8/Recycling | Discovered new exit (range 2) 3733 | -8/Recycling | Entered Scraptown 3915 | -8/Scraptown | Heard Great Nut preacher, LISTEN AND RECITE! 4195 | -8/Scraptown | Visited Symbiants 4242 | -8/Scraptown | Visited Shadow of the Wyrm 4281 | -8/Scraptown | Visited TADAMA 4336 | -8/Scraptown | Visited Observation Area 4405 | -8/Scraptown | Visited IN-MT5's Study 4431 | -8/Scraptown | Visited UFD Registry 4431 | -8/Scraptown | Registered with UFD as "Pyrobrain" 4494 | -8/Scraptown | Visited Junk Repository 4542 | -8/Scraptown | Visited Curators Association 4597 | -8/Scraptown | Visited Science Testing Area 4716 | -8/Scraptown | Discovered new exit (range 5) 4767 | -8/Scraptown | Visited LU-1G1's Boring Crew 4806 | -8/Scraptown | Visited Scrapoid Pod Storage 4831 | -8/Scraptown | Visited Derelict Rescue Squad 4933 | -8/Scraptown | Visited Chapter 10 4998 | -8/Scraptown | Delivered Scrap Shield to a Scientist 5088 | -8/Scraptown | Visited Science Guys 5106 | -8/Scraptown | Visited Research Penetration Think Tank 5117 | -8/Scraptown | Visited Scrapoid Research Area 5135 | -8/Scraptown | Visited Comm Corps 5161 | -8/Scraptown | Visited Red Mages 5284 | -8/Scraptown | Scanned Subdweller tech in exchange for log data 5290 | -8/Scraptown | Learned Research stockpile data 5299 | -8/Scraptown | Discovered new exit (range 11) 5306 | -8/Scraptown | Entered Factory 5306 | -6/Factory | Evolved 8 slots: Utility x8 5426 | -6/Factory | Spotted B-75 Beast 5587 | -6/Factory | Repaired Adv. Weight Redist. System 5671 | -6/Factory | Identified exit to DSF 5671 | -6/Factory | Entered DSF 5702 | -6/DSF | Additional patrols routed to DSF 5724 | -6/DSF | Discovered new exit (range 21) 5739 | -6/DSF | Entered Factory 5739 | -5/Factory | Evolved 2 slots: Utility x2 5836 | -5/Factory | Spotted B-75 Beast 5842 | -5/Factory | Discovered new exit (range 22) 5858 | -5/Factory | Identified exit to Factory 5860 | -5/Factory | Entered another Factory area 5860 | -4/Factory | Evolved 2 slots: Utility x2 5872 | -4/Factory | Identified exit to DSF 5872 | -4/Factory | Entered DSF 5876 | -4/DSF | Lost 3 parts (3u) 5893 | -4/DSF | Additional patrols routed to DSF 5903 | -4/DSF | Discovered new exit (range 17) 5927 | -4/DSF | Identified exit to Research 5928 | -4/DSF | Entered Research 5928 | -3/Research | Evolved 2 slots: Utility x2 6079 | -3/Research | Spotted B-86 Titan 6377 | -3/Research | Build established: Hacker-Mutant 6404 | -3/Research | Repaired Katana 6454 | -3/Research | Discovered new exit (range 5) 6458 | -3/Research | Identified exit to Armory 6484 | -3/Research | Entered Armory 6484 | -3/Armory | Accompanied by 1 ally 6541 | -3/Armory | Core integrity fell below 50% 6562 | -3/Armory | Core integrity fell below 20% 6568 | -3/Armory | Destroyed by P-80 Master with Gamma Rifle Last Messages --------------- 06532_ Slammed into S-43 Plague. 06536_ Imp. Melee Analysis Suite destroyed. 06536_ Adv. Corruption Screen intercepted 1% system corruption. 06539_ Adv. Signal Interpreter destroyed. 06541_ Adv. Corruption Screen intercepted 1% system corruption. 06551_ Connecting with Terminal... >>Layout(Zone) Retrieving Zone 2T layout... Downloaded map data. 06558_ Terminal disabled. 06562_ Adv. Corruption Screen intercepted 1% system corruption. 06562_ S-43 Plague destroyed. 06564_ Adv. Corruption Screen intercepted 1% system corruption. 06565_ Sub. Shrapnel Launcher destroyed. 06565_ Adv. Corruption Screen intercepted 1% system corruption. Map ----- +----------------------------------------------------+ | ???????????????????????????# #?#! # | | ???????????????????????????# #?###+######+## | | ???????????????????????????# #???# | | ???????????????????????????# #???# | | ??????????????????????????## ##### | | ??????????????????????????# | | ??????????????????????????# | | ??????????????????????????# | | ??????????????????????????# | | ??????????????????????????# | | ????????????????????????### | | ????????????????????????# ##### | | ????????????????????????# #???# | | ?????????????????????#### #???# | | ?????????????????????# #???# | | ?????????????????????# #???# | | ?????????????????????# #???# | | ?????????????????????#### #???# | | ?????????????????######## ###?? | | ????????????????? ############ # ?? | | ???????? ### ####?# # ?? | | ???????? ##""";;;;### # ?? | | ???????? g s + ?? | | ??????????????? ######+#####;;p;;## # ?? | | ????????????????# g ; %= # ##### | | ????????????????+ ! //@ ;[ p# | | ????????????????# /// ; # | | ????????????????# /// # " s; | | ????????????????#* # "" + ########+#### | | ????????????????# # "" ###????# + | | ????????????????# # #??????# " " ## | | ????????????????+ """ """ # #??????# " " ?? | | ????????????????# """ """ # #??????# " " ?? | | ????????????????# """ """ ######??????# " " ?? | | ????????????????# #???????????# ?? | | ????????????????# #???????????#######?? | | ????????????????###Y##########???????????????????? | | ??????????????????###????????????????????????????? | | ?????????????????????????????????????????????????? | | ?????????????????????????????????????????????????? | | ?????????????????????????????????????????????????? | | ?????????????????????????????????????????????????? | | ?????????????????????????????????????????????????? | | ?????????????????????????????????????????????????? | | ?????????????????????????????????????????????????? | | ?????????????????????????????????????????????????? | | ?????????????????????????????????????????????????? | | | | | | | +----------------------------------------------------+ Best States ------------- Heat Dissipation 46 Energy Generation 16 Energy Capacity 290 Matter Stores 300 Matter Capacity 300 Sight Range 22 Terrain Scan Range 16 Terrain Scan Density 285 Power Amplification 20 Additional Mass Support 9 Corruption Block 20 Evasion (%) 50 Melee Accuracy 6 Core Analysis 6 Offensive Hacking 24 Item Schematics ----------------- Imp. Light Armor Plating | -8/Recycling | Hacked Robot Schematics ------------------ None Fabricated ------------ Nothing Alien Tech Used ----------------- None Achievements -------------- None Challenges ------------ None Game ------ Seed MetaNetworkInverter Manual? 0 Play Time 01:01:29 Cumulative 80.6 hours Start 2024.11.10 @ 11:42:52 End 2024.11.10 @ 12:49:14 Sessions 1 Manual Loads 0 Difficulty Rogue Special Mode None Game No. 74 Rogue 74 Adventurer 0 Explorer 0 Win Type - Total 2 Types 2/0/0/0/0/0/0/0/0 Lore% 44 Gallery% 47 Achievement% 41 Wizard Run 0 Options --------- Layout 1 ASCII 0 Keyboard 1 Movement Arrows Keybinds 0 Fullscreen 2 Font 24/Smallcaps Map View 50x35 Zoom Use 0% Tactical HUD 1 Map Filters NONE Filters NONE Steam 1 RUN: ee94cc85-240f-4574-9879-2dbc7c7b4fd4